[Event "XIV Closed IM BCC 2021"]
[Site "Barcelona"]
[Date "2021.05.09"]
[Round "6.4"]
[White "Martin Barcelo, Carles"]
[Black "Perez Perez, Gabriel"]
[Result "1/2-1/2"]
[ECO "B31"]
[WhiteElo "2201"]
[BlackElo "2079"]
[Annotator "NA"]
[PlyCount "200"]
[EventDate "2021.05.03"]
[EventType "tourn"]
[EventCountry "ESP"]
[SourceTitle "playchess.com"]
[Source "ChessBase"]
[SourceQuality "1"]
[TimeControl "5400+30"]

1. e4 {[%emt 0:00:00]} c5 {[%emt 0:00:00]} 2. Nf3 {[%emt 0:00:00]} Nc6 {[%emt 0:00:05]} 3. Bb5 {[%emt 0:00:11]} g6 {[%emt 0:00:30]} 4. Bxc6 {[%emt 0:01:57]} dxc6 {[%emt 0:00:10]} 5. d3 {[%emt 0:00:20]} Bg7 {[%emt 0:00:15]} 6. h3 {[%emt 0:00:11]} e5 {[%emt 0:01:50]} 7. a4 {[%emt 0:03:38]} f6 {[%emt 0:05:23]} 8. a5 {[%emt 0:01:36]} Be6 {[%emt 0:01:11]} 9. Be3 {[%emt 0:09:43]} b6 10. Na3 {[%emt 0:08:49]} Nh6 {[%emt 0:08:19]} 11. Nc4 {[%emt 0:05:12]} Nf7 {[%emt 0:06:01]} 12. O-O {[%emt 0:04:52]} Rb8 {[%emt 0:06:33]} 13. axb6 {[%emt 0:02:57]} axb6 {[%emt 0:00:04]} 14. Nfd2 {[%emt 0:02:49]} O-O {[%emt 0:10:25]} 15. Qe2 {[%emt 0:12:52]} Nd6 {[%emt 0:09:15]} 16. Nxd6 {[%emt 0:02:01]} Qxd6 {[%emt 0:00:10]} 17. Ra6 {[%emt 0:02:49]} Bc8 {[%emt 0:09:41]} 18. Ra7 {[%emt 0:03:52]} Rb7 {[%emt 0:04:16]} 19. Ra3 {[%emt 0:01:15]} f5 {[%emt 0:08:47]} 20. f3 {[%emt 0:01:32]} f4 {[%emt 0:01:26]} 21. Bf2 {[%emt 0:02:33]} g5 {[%emt 0:03:52]} 22. Rfa1 {[%emt 0:11:21]} h5 23. Nf1 {[%emt 0:05:50]} Rbf7 {[%emt 0:03:34]} 24. Nh2 {[%emt 0:01:05]} Qg6 {[%emt 0:06:50]} 25. Ra8 {[%emt 0:01:34]} Qd6 {[%emt 0:03:10]} 26. b3 {[%emt 0:04:29]} Rf6 {[%emt 0:00:49]} 27. Kf1 {[%emt 0:01:03]} Rg6 {[%emt 0:00:12]} 28. Ke1 {[%emt 0:01:35]} Kh7 {[%emt 0:01:23]} 29. Kd2 {[%emt 0:01:29]} Be6 {[%emt 0:02:18]} 30. Kc3 {[%emt 0:03:43]} Rgf6 {[%emt 0:00:38]} 31. Kb2 {[%emt 0:01:57]} R6f7 {[%emt 0:00:59]} 32. R1a6 {[%emt 0:01:13]} Rb7 {[%emt 0:01:12]} 33. R8a7 {[%emt 0:00:40]} Qc7 {[%emt 0:00:29]} 34. Rxb7 {[%emt 0:00:29]} Qxb7 {[%emt 0:00:01]} 35. Ra1 {[%emt 0:00:08]} Bf6 {[%emt 0:01:04]} 36. Qd1 {[%emt 0:00:49]} Rb8 {[%emt 0:00:58]} 37. Qb1 {[%emt 0:00:34]} Qd7 {[%emt 0:00:01]} 38. Qa2 {[%emt 0:00:39]} Qe7 {[%emt 0:01:39]} 39. Qa7 {[%emt 0:00:21]} Rb7 {[%emt 0:00:01]} 40. Qa8 {[%emt 0:00:08]} Kg7 {[%emt 0:01:00]} 41. Ra6 {[%emt 0:00:39]} Qc7 {[%emt 0:00:46]} 42. Qe8 {[%emt 0:00:52]} Bf7 {[%emt 0:00:36]} 43. Qa8 {[%emt 0:00:05]} Bd8 {[%emt 0:02:26]} 44. Ra1 {[%emt 0:00:29]} Be7 {[%emt 0:00:40]} 45. Ra2 {[%emt 0:01:28]} b5 {[%emt 0:00:16]} 46. Nf1 {[%emt 0:00:18]} c4 {[%emt 0:00:46]} 47. d4 {[%emt 0:00:46]} cxb3 {[%emt 0:00:31]} 48. cxb3 {[%emt 0:00:08]} Bf6 {[%emt 0:00:05]} 49. d5 {[%emt 0:00:51]} cxd5 {[%emt 0:00:09]} 50. Ra7 {[%emt 0:00:29]} Rxa7 {[%emt 0:00:18]} 51. Qxa7 {[%emt 0:00:01]} Qxa7 52. Bxa7 {[%emt 0:00:01]} dxe4 {[%emt 0:01:17]} 53. fxe4 {[%emt 0:00:01]} Be7 {[%emt 0:00:47]} 54. Kc3 {[%emt 0:00:47]} Be6 {[%emt 0:01:22]} 55. Nd2 {[%emt 0:00:24]} g4 {[%emt 0:00:13]} 56. hxg4 {[%emt 0:00:05]} hxg4 {[%emt 0:00:14]} 57. Bb8 {[%emt 0:01:30]} Kf6 {[%emt 0:00:24]} 58. Ba7 {[%emt 0:01:15]} Bd7 {[%emt 0:01:34]} 59. Bb6 {[%emt 0:00:18]} Bc6 {[%emt 0:00:04]} 60. Ba7 {[%emt 0:00:25]} Ke6 {[%emt 0:00:08]} 61. Bb6 {[%emt 0:00:15]} Bh4 {[%emt 0:00:06]} 62. Kd3 {[%emt 0:00:50]} Be1 {[%emt 0:00:01]} 63. Ba5 {[%emt 0:00:35]} f3 {[%emt 0:00:56]} 64. gxf3 {[%emt 0:00:12]} gxf3 {[%emt 0:00:23]} 65. Bb4 {[%emt 0:00:46]} Bxe4+ {[%emt 0:02:24]} 66. Kxe4 {[%emt 0:00:42]} f2 {[%emt 0:00:26]} 67. Bc5 {[%emt 0:00:22]} Bxd2 {[%emt 0:00:52]} 68. Bxf2 {[%emt 0:00:01]} Kd6 {[%emt 0:00:42]} 69. Bg1 {[%emt 0:00:55]} Bb4 {[%emt 0:00:21]} 70. Ba7 {[%emt 0:00:14]} Bc3 {[%emt 0:00:23]} 71. Bf2 {[%emt 0:00:52]} Bb2 {[%emt 0:00:14]} 72. Be3 {[%emt 0:00:14]} Kc6 {[%emt 0:00:04]} 73. Bf2 {[%emt 0:00:33]} Ba1 {[%emt 0:01:11]} 74. Bg1 {[%emt 0:00:09]} Kd6 {[%emt 0:00:35]} 75. Bf2 {[%emt 0:00:14]} Bc3 {[%emt 0:00:32]} 76. Bg1 {[%emt 0:00:28]} Bd2 {[%emt 0:00:08]} 77. Bf2 {[%emt 0:00:23]} Bc3 {[%emt 0:00:43]} 78. Bg1 {[%emt 0:00:14]} Kc6 {[%emt 0:00:23]} 79. Bf2 {[%emt 0:00:12]} Kb7 {[%emt 0:00:03]} 80. Bg3 {[%emt 0:01:05]} Kb6 {[%emt 0:00:27]} 81. b4 {[%emt 0:00:28]} Bxb4 {[%emt 0:00:11]} 82. Bxe5 {[%emt 0:00:07]} Ka5 {[%emt 0:00:10]} 83. Kd3 {[%emt 0:00:11]} Ka4 {[%emt 0:00:02]} 84. Kc2 {[%emt 0:00:08]} Ka3 {[%emt 0:00:12]} 85. Kb1 {[%emt 0:00:05]} Kb3 {[%emt 0:00:11]} 86. Bf6 {[%emt 0:00:24]} Bc3 {[%emt 0:00:04]} 87. Be7 {[%emt 0:00:07]} Be5 {[%emt 0:00:06]} 88. Bf8 {[%emt 0:00:20]} Bc3 {[%emt 0:00:09]} 89. Be7 {[%emt 0:00:12]} Bb4 {[%emt 0:00:05]} 90. Bxb4 {[%emt 0:01:37]} Kxb4 {[%emt 0:00:11]} 91. Kb2 {[%emt 0:00:04]} Kc4 {[%emt 0:00:05]} 92. Kc2 {[%emt 0:00:04]} Kc5 {[%emt 0:00:03]} 93. Kc3 {[%emt 0:00:18]} b4+ {[%emt 0:00:09]} 94. Kb3 {[%emt 0:00:04]} Kb5 {[%emt 0:00:05]} 95. Kb2 {[%emt 0:00:06]} Kc4 {[%emt 0:00:06]} 96. Kc2 {[%emt 0:00:04]} b3+ {[%emt 0:00:01]} 97. Kb2 {[%emt 0:00:06]} Kb4 {[%emt 0:00:01]} 98. Kb1 {[%emt 0:00:09]} Kc3 {[%emt 0:00:01]} 99. Kc1 {[%emt 0:00:05]} b2+ {[%emt 0:00:03]} 100. Kb1 {[%emt 0:00:04]} Kb3 {[%emt 0:00:00]} 1/2-1/2

[Event "XIV Closed IM BCC 2021"]
[Site "Barcelona"]
[Date "2021.05.09"]
[Round "6.5"]
[White "Dalaud, Dorian"]
[Black "Kuhn, Clement"]
[Result "1-0"]
[ECO "C00"]
[WhiteElo "2306"]
[BlackElo "2252"]
[Annotator "NA"]
[PlyCount "113"]
[EventDate "2021.05.03"]
[EventType "tourn"]
[EventCountry "ESP"]
[SourceTitle "playchess.com"]
[Source "ChessBase"]
[SourceQuality "1"]
[TimeControl "5400+30"]

1. e4 {[%emt 0:04:06]} e6 {[%emt 0:00:00]} 2. c4 {[%emt 0:00:12]} d5 {[%emt 0:01:53]} 3. exd5 {[%emt 0:00:23]} exd5 {[%emt 0:02:49]} 4. cxd5 {[%emt 0:00:07]} Nf6 {[%emt 0:01:27]} 5. Bb5+ {[%emt 0:00:06]} Bd7 {[%emt 0:00:44]} 6. Bc4 {[%emt 0:00:02]} Bd6 {[%emt 0:02:45]} 7. Qe2+ {[%emt 0:00:27]} Be7 {[%emt 0:01:33]} 8. Nc3 {[%emt 0:05:04]} O-O {[%emt 0:00:12]} 9. Nf3 {[%emt 0:01:16]} Bg4 {[%emt 0:07:14]} 10. h3 {[%emt 0:08:14]} Bh5 {[%emt 0:03:19]} 11. g4 {[%emt 0:03:40]} Re8 {[%emt 0:08:02]} 12. d4 {[%emt 0:05:06]} Bd6 {[%emt 0:08:58]} 13. Ne5 {[%emt 0:08:15]} Nfd7 {[%emt 0:02:35]} 14. Be3 {[%emt 0:07:29]} Bg6 {[%emt 0:07:53]} 15. Nxg6 {[%emt 0:06:55]} fxg6 {[%emt 0:01:10]} 16. O-O-O {[%emt 0:04:04]} Nb6 {[%emt 0:03:13]} 17. Bb3 {[%emt 0:04:55]} a5 {[%emt 0:01:18]} 18. a3 {[%emt 0:03:00]} a4 {[%emt 0:06:00]} 19. Ba2 {[%emt 0:01:16]} N8d7 {[%emt 0:01:09]} 20. h4 {[%emt 0:01:28]} Nf6 {[%emt 0:06:52]} 21. h5 {[%emt 0:02:39]} g5 {[%emt 0:03:29]} 22. h6 {[%emt 0:04:07]} Qd7 {[%emt 0:04:33]} 23. hxg7 {[%emt 0:09:51]} Qxg7 {[%emt 0:07:27]} 24. Qf3 {[%emt 0:02:13]} Re7 {[%emt 0:02:31]} 25. Rh3 {[%emt 0:01:51]} Rf8 {[%emt 0:00:40]} 26. Qg2 {[%emt 0:04:38]} Kf7 {[%emt 0:03:38]} 27. Rdh1 {[%emt 0:04:44]} Ke8 {[%emt 0:00:17]} 28. Rh6 {[%emt 0:00:32]} Kd8 {[%emt 0:00:35]} 29. Qg1 {[%emt 0:03:11]} Kc8 {[%emt 0:01:04]} 30. Qd1 {[%emt 0:00:35]} Kb8 {[%emt 0:01:22]} 31. R6h3 {[%emt 0:00:10]} Qg8 {[%emt 0:01:15]} 32. Rf3 {[%emt 0:01:32]} Bf4 {[%emt 0:06:11]} 33. Bxf4 {[%emt 0:01:03]} gxf4 {[%emt 0:00:01]} 34. Rxf4 {[%emt 0:00:30]} Qg5 {[%emt 0:00:35]} 35. Qd2 {[%emt 0:00:10]} Rfe8 {[%emt 0:00:40]} 36. Rf5 {[%emt 0:01:25]} Qxd2+ {[%emt 0:01:25]} 37. Kxd2 {[%emt 0:00:01]} Ne4+ {[%emt 0:00:09]} 38. Kd3 {[%emt 0:02:52]} Nxc3 {[%emt 0:00:08]} 39. Kxc3 {[%emt 0:00:18]} Re4 {[%emt 0:01:33]} 40. Re5 {[%emt 0:00:23]} R8xe5 {[%emt 0:00:18]} 41. dxe5 {[%emt 0:00:05]} Rxe5 {[%emt 0:01:12]} 42. Rxh7 {[%emt 0:00:05]} Re1 {[%emt 0:00:04]} 43. g5 {[%emt 0:01:07]} Rg1 {[%emt 0:00:16]} 44. f4 {[%emt 0:00:32]} Rg3+ {[%emt 0:00:39]} 45. Kd4 {[%emt 0:00:32]} Rg2 {[%emt 0:00:09]} 46. Bc4 {[%emt 0:00:52]} Rd2+ {[%emt 0:01:53]} 47. Bd3 {[%emt 0:00:27]} Rg2 {[%emt 0:01:31]} 48. g6 {[%emt 0:00:18]} Rg4 {[%emt 0:00:20]} 49. Ke5 {[%emt 0:00:36]} Rg3 {[%emt 0:00:11]} 50. Kd4 {[%emt 0:00:38]} Rg4 {[%emt 0:00:06]} 51. Rf7 {[%emt 0:00:04]} Ka7 {[%emt 0:00:17]} 52. Rxc7 {[%emt 0:00:52]} Rxf4+ {[%emt 0:00:06]} 53. Ke5 {[%emt 0:00:07]} Rg4 {[%emt 0:00:05]} 54. d6 {[%emt 0:00:24]} Rg1 {[%emt 0:01:48]} 55. Be4 {[%emt 0:00:32]} Ka6 {[%emt 0:00:05]} 56. Bxb7+ {[%emt 0:00:26]} Ka5 {[%emt 0:00:09]} 57. Ke4 1-0

[Event "XIV Closed IM BCC 2021"]
[Site "Barcelona"]
[Date "2021.05.10"]
[Round "7.2"]
[White "Perez Perez, Gabriel"]
[Black "Dalaud, Dorian"]
[Result "1/2-1/2"]
[ECO "B22"]
[WhiteElo "2079"]
[BlackElo "2306"]
[Annotator "NA"]
[PlyCount "98"]
[EventDate "2021.05.03"]
[EventType "tourn"]
[EventCountry "ESP"]
[SourceTitle "playchess.com"]
[Source "ChessBase"]
[SourceQuality "1"]
[TimeControl "5400+30"]

1. e4 {[%emt 0:00:00]} c5 {[%emt 0:01:56]} 2. c3 {[%emt 0:00:00]} d5 {[%emt 0:02:06]} 3. exd5 {[%emt 0:00:04]} Qxd5 {[%emt 0:00:23]} 4. d4 {[%emt 0:00:16]} Nc6 {[%emt 0:00:05]} 5. Nf3 {[%emt 0:00:30]} Bf5 {[%emt 0:00:05]} 6. Be3 {[%emt 0:00:45]} cxd4 {[%emt 0:00:10]} 7. Nxd4 {[%emt 0:00:31]} Nf6 {[%emt 0:12:43]} 8. Nxf5 {[%emt 0:00:20]} Qxf5 {[%emt 0:00:02]} 9. Bd3 {[%emt 0:00:20]} Qd5 {[%emt 0:00:18]} 10. O-O {[%emt 0:00:27]} O-O-O {[%emt 0:00:04]} 11. Be2 {[%emt 0:00:12]} Qxd1 {[%emt 0:00:05]} 12. Rxd1 {[%emt 0:00:11]} Rxd1+ {[%emt 0:00:07]} 13. Bxd1 {[%emt 0:00:02]} Nd5 {[%emt 0:00:08]} 14. Nd2 {[%emt 0:00:37]} Nxe3 {[%emt 0:04:24]} 15. fxe3 {[%emt 0:00:02]} e6 {[%emt 0:13:07]} 16. Nc4 {[%emt 0:01:13]} Kc7 {[%emt 0:22:24]} 17. a4 {[%emt 0:06:05]} Bd6 {[%emt 0:01:53]} 18. Bf3 {[%emt 0:04:50]} Ne5 {[%emt 0:01:58]} 19. Nxe5 {[%emt 0:00:12]} Bxe5 {[%emt 0:00:01]} 20. Rd1 {[%emt 0:00:14]} h5 {[%emt 0:00:49]} 21. h3 {[%emt 0:04:32]} g5 {[%emt 0:07:10]} 22. e4 {[%emt 0:00:21]} Bg3 {[%emt 0:02:58]} 23. Be2 {[%emt 0:08:02]} a6 {[%emt 0:05:35]} 24. Rf1 {[%emt 0:05:25]} Rh7 {[%emt 0:00:10]} 25. Rf3 {[%emt 0:01:32]} Bf4 {[%emt 0:04:23]} 26. h4 {[%emt 0:02:00]} Bc1 {[%emt 0:00:15]} 27. hxg5 {[%emt 0:00:43]} Bxb2 {[%emt 0:00:40]} 28. Rh3 {[%emt 0:01:17]} h4 {[%emt 0:11:45]} 29. g3 {[%emt 0:01:07]} Bxc3 {[%emt 0:00:05]} 30. gxh4 {[%emt 0:00:12]} Be1 {[%emt 0:00:06]} 31. h5 {[%emt 0:01:24]} Bd2 {[%emt 0:00:06]} 32. Rg3 {[%emt 0:00:54]} Rg7 {[%emt 0:00:43]} 33. h6 {[%emt 0:11:11]} Rxg5 {[%emt 0:00:33]} 34. Rxg5 {[%emt 0:00:10]} Bxg5 {[%emt 0:00:09]} 35. h7 {[%emt 0:00:04]} Bf6 {[%emt 0:02:18]} 36. Bh5 {[%emt 0:00:46]} Bd4+ {[%emt 0:06:18]} 37. Kg2 {[%emt 0:00:46]} b5 {[%emt 0:01:39]} 38. axb5 {[%emt 0:00:10]} axb5 {[%emt 0:00:01]} 39. Bxf7 {[%emt 0:00:21]} Kd6 {[%emt 0:00:12]} 40. Be8 {[%emt 0:00:22]} b4 {[%emt 0:00:51]} 41. Ba4 {[%emt 0:00:08]} Bh8 {[%emt 0:00:58]} 42. Bb3 {[%emt 0:00:43]} e5 {[%emt 0:00:31]} 43. Kf3 {[%emt 0:00:06]} Kc5 {[%emt 0:00:32]} 44. Ke3 {[%emt 0:00:01]} Kb5 {[%emt 0:00:27]} 45. Kd3 {[%emt 0:00:08]} Bf6 {[%emt 0:00:18]} 46. Bc2 {[%emt 0:00:14]} Kc5 {[%emt 0:00:30]} 47. Ba4 {[%emt 0:00:07]} Bh8 {[%emt 0:00:19]} 48. Bc2 {[%emt 0:00:15]} Bg7 {[%emt 0:00:36]} 49. Bd1 {[%emt 0:00:19]} Bh8 {[%emt 0:00:06]} 1/2-1/2

[Event "XIV Closed IM BCC 2021"]
[Site "Barcelona"]
[Date "2021.05.10"]
[Round "7.3"]
[White "Munoz, Miguel"]
[Black "Martin Barcelo, Carles"]
[Result "1/2-1/2"]
[ECO "C07"]
[WhiteElo "2462"]
[BlackElo "2201"]
[Annotator "ChessBase"]
[PlyCount "38"]
[EventDate "2021.05.03"]
[EventType "tourn"]
[EventCountry "ESP"]
[SourceTitle "playchess.com"]
[Source "ChessBase"]
[SourceQuality "1"]
[TimeControl "5400+30"]

1. e4 {[%emt 0:08:33]} e6 {[%emt 0:00:00]} 2. d4 {[%emt 0:00:11]} d5 {[%emt 0:00:02]} 3. Nd2 {[%emt 0:00:08]} c5 {[%emt 0:00:25]} 4. Ngf3 {[%emt 0:00:08]} cxd4 {[%emt 0:00:17]} 5. exd5 {[%emt 0:00:12]} Qxd5 {[%emt 0:00:21]} 6. Bc4 {[%emt 0:00:10]} Qd6 {[%emt 0:00:31]} 7. O-O {[%emt 0:00:14]} Nf6 {[%emt 0:00:18]} 8. Nb3 {[%emt 0:00:22]} Nc6 {[%emt 0:00:37]} 9. Qe2 {[%emt 0:01:20]} a6 {[%emt 0:03:01]} 10. a4 {[%emt 0:00:08]} Be7 {[%emt 0:02:17]} 11. Rd1 {[%emt 0:02:02]} e5 {[%emt 0:01:26]} 12. Bg5 {[%emt 0:13:08]} O-O {[%emt 0:05:34]} 13. c3 {[%emt 0:01:07]} Bg4 {[%emt 0:04:20]} 14. Bxf6 {[%emt 0:03:33]} Bxf6 {[%emt 0:12:20]} 15. Qe4 {[%emt 0:02:14]} Bxf3 {[%emt 0:14:51]} 16. Qxf3 {[%emt 0:00:57]} Rad8 {[%emt 0:00:37]} 17. cxd4 {[%emt 0:09:33]} exd4 {[%emt 0:00:33]} 18. Rac1 {[%emt 0:00:05]} Rfe8 {[%emt 0:10:09]} 19. Nc5 {[%emt 0:01:23]} Re7 {[%emt 0:18:24]} 1/2-1/2

[Event "XIV Closed IM BCC 2021"]
[Site "Barcelona"]
[Date "2021.05.10"]
[Round "7.4"]
[White "Ryan, Joseph"]
[Black "Boyer, Mahel"]
[Result "0-1"]
[ECO "A14"]
[WhiteElo "2271"]
[BlackElo "2333"]
[Annotator "NA"]
[PlyCount "83"]
[EventDate "2021.05.03"]
[EventType "tourn"]
[EventCountry "ESP"]
[SourceTitle "playchess.com"]
[Source "ChessBase"]
[SourceQuality "1"]
[TimeControl "5400+30"]

1. Nf3 {[%emt 0:02:37]} Nf6 {[%emt 0:00:00]} 2. c4 {[%emt 0:00:06]} e6 {[%emt 0:00:01]} 3. g3 {[%emt 0:00:57]} d5 {[%emt 0:00:12]} 4. Bg2 {[%emt 0:01:13]} Be7 {[%emt 0:00:46]} 5. O-O {[%emt 0:00:10]} O-O {[%emt 0:00:08]} 6. b3 {[%emt 0:00:18]} c5 {[%emt 0:00:29]} 7. Bb2 {[%emt 0:01:09]} Nc6 {[%emt 0:00:17]} 8. cxd5 {[%emt 0:00:39]} exd5 {[%emt 0:00:25]} 9. d4 {[%emt 0:00:30]} b6 {[%emt 0:00:08]} 10. Nc3 {[%emt 0:04:47]} Ba6 {[%emt 0:00:14]} 11. Re1 {[%emt 0:04:03]} Rc8 {[%emt 0:01:02]} 12. Rc1 {[%emt 0:00:31]} c4 {[%emt 0:03:03]} 13. Ne5 {[%emt 0:09:28]} cxb3 {[%emt 0:26:47]} 14. Nxd5 {[%emt 0:20:26]} Nxe5 {[%emt 0:10:25]} 15. Rxc8 {[%emt 0:01:34]} Bxc8 {[%emt 0:00:05]} 16. Nxe7+ {[%emt 0:00:48]} Qxe7 {[%emt 0:00:05]} 17. dxe5 {[%emt 0:00:17]} Ng4 {[%emt 0:06:04]} 18. Qxb3 {[%emt 0:01:30]} Qc5 {[%emt 0:01:11]} 19. e3 {[%emt 0:06:09]} Be6 {[%emt 0:00:41]} 20. Qa4 {[%emt 0:04:38]} b5 {[%emt 0:34:21]} 21. Qd1 {[%emt 0:10:00]} Rc8 {[%emt 0:02:25]} 22. h3 {[%emt 0:03:53]} Nxe5 {[%emt 0:03:12]} 23. Bd4 {[%emt 0:01:05]} Qc7 {[%emt 0:00:46]} 24. Qb1 {[%emt 0:02:57]} a6 {[%emt 0:01:29]} 25. Qe4 {[%emt 0:01:27]} Nc4 {[%emt 0:01:29]} 26. Rc1 {[%emt 0:02:59]} h6 {[%emt 0:00:28]} 27. Kh2 {[%emt 0:00:35]} Qd7 {[%emt 0:01:24]} 28. Qd3 {[%emt 0:07:30]} Rd8 {[%emt 0:00:46]} 29. Qc3 {[%emt 0:00:21]} f6 {[%emt 0:00:14]} 30. Rd1 {[%emt 0:01:35]} Rc8 {[%emt 0:01:10]} 31. Qe1 {[%emt 0:00:45]} Qf7 {[%emt 0:00:25]} 32. Qe2 {[%emt 0:01:01]} b4 {[%emt 0:01:03]} 33. Be4 {[%emt 0:00:48]} a5 {[%emt 0:00:32]} 34. Bd3 {[%emt 0:03:29]} Rb8 {[%emt 0:02:39]} 35. Rc1 {[%emt 0:00:42]} Nd6 {[%emt 0:00:43]} 36. Rc6 {[%emt 0:01:17]} Qd7 {[%emt 0:00:33]} 37. Ra6 {[%emt 0:02:47]} a4 {[%emt 0:00:57]} 38. Qh5 {[%emt 0:00:41]} b3 {[%emt 0:01:21]} 39. axb3 {[%emt 0:00:29]} axb3 {[%emt 0:00:02]} 40. Bb2 {[%emt 0:03:16]} Nc4 {[%emt 0:00:35]} 41. Bxc4 {[%emt 0:00:24]} Bxc4 {[%emt 0:00:04]} 42. Ra1 0-1

[Event "XIV Closed IM BCC 2021"]
[Site "Barcelona"]
[Date "2021.05.10"]
[Round "7.5"]
[White "Benedetti, Julio"]
[Black "Asis Gargatagli, Hipolito"]
[Result "0-1"]
[ECO "C50"]
[WhiteElo "2282"]
[BlackElo "2454"]
[Annotator "ChessBase"]
[PlyCount "78"]
[EventDate "2021.05.03"]
[EventType "tourn"]
[EventCountry "ESP"]
[SourceTitle "playchess.com"]
[Source "ChessBase"]
[SourceQuality "1"]
[TimeControl "5400+30"]

1. e4 {[%emt 0:00:00]} e5 {[%emt 0:00:00]} 2. Nf3 {[%emt 0:00:00]} Nc6 {[%emt 0:00:00]} 3. Bc4 {[%emt 0:00:00]} Nf6 {[%emt 0:00:00]} 4. d3 {[%emt 0:00:13]} Bc5 {[%emt 0:00:10]} 5. c3 {[%emt 0:01:28]} O-O {[%emt 0:00:46]} 6. O-O {[%emt 0:01:55]} d6 {[%emt 0:01:32]} 7. a4 {[%emt 0:01:56]} a5 {[%emt 0:01:35]} 8. h3 {[%emt 0:03:01]} Ba7 {[%emt 0:07:40]} 9. Re1 {[%emt 0:01:57]} Ne7 {[%emt 0:08:36]} 10. Nbd2 {[%emt 0:11:46]} Ng6 {[%emt 0:05:12]} 11. Nf1 {[%emt 0:01:32]} c6 {[%emt 0:01:50]} 12. Bb3 {[%emt 0:02:00]} d5 {[%emt 0:09:36]} 13. exd5 {[%emt 0:03:09]} Nxd5 {[%emt 0:00:12]} 14. Bg5 {[%emt 0:11:57]} f6 {[%emt 0:15:10]} 15. Be3 {[%emt 0:03:56]} Bxe3 {[%emt 0:08:15]} 16. Nxe3 {[%emt 0:00:21]} Kh8 {[%emt 0:00:09]} 17. Bc2 {[%emt 0:14:01]} Re8 {[%emt 0:05:06]} 18. Nf1 {[%emt 0:01:00]} f5 {[%emt 0:08:30]} 19. Ng3 {[%emt 0:01:35]} h6 {[%emt 0:04:45]} 20. h4 {[%emt 0:04:22]} Qf6 {[%emt 0:04:51]} 21. h5 {[%emt 0:05:50]} Nh4 {[%emt 0:01:26]} 22. Bb3 {[%emt 0:03:09]} Bd7 {[%emt 0:04:20]} 23. Bc4 {[%emt 0:14:48]} Rad8 {[%emt 0:02:07]} 24. Nxh4 {[%emt 0:04:12]} Qxh4 {[%emt 0:00:07]} 25. Nf1 {[%emt 0:00:11]} Nf4 {[%emt 0:06:30]} 26. Ng3 {[%emt 0:00:35]} Qg5 {[%emt 0:01:02]} 27. Qb3 {[%emt 0:01:38]} b5 {[%emt 0:01:50]} 28. Bf7 {[%emt 0:00:38]} Re7 {[%emt 0:00:59]} 29. axb5 {[%emt 0:01:08]} cxb5 {[%emt 0:00:05]} 30. Rxa5 {[%emt 0:01:49]} Bc6 {[%emt 0:01:38]} 31. Ra6 {[%emt 0:01:37]} Bxg2 {[%emt 0:00:20]} 32. Bg6 {[%emt 0:00:20]} Bb7 {[%emt 0:00:34]} 33. Ra7 {[%emt 0:01:35]} Nxg6 {[%emt 0:00:47]} 34. hxg6 {[%emt 0:01:17]} f4 {[%emt 0:00:04]} 35. Qxb5 {[%emt 0:00:03]} fxg3 {[%emt 0:00:20]} 36. Rxb7 {[%emt 0:00:17]} gxf2+ {[%emt 0:00:21]} 37. Kxf2 {[%emt 0:00:05]} Qd2+ {[%emt 0:00:29]} 38. Re2 {[%emt 0:00:55]} Rf8+ {[%emt 0:00:05]} 39. Kg3 {[%emt 0:00:22]} Qf4+ {[%emt 0:00:11]} 0-1

[Event "XIV Closed IM BCC 2021"]
[Site "Barcelona"]
[Date "2021.05.12"]
[Round "9.1"]
[White "Perez Perez, Gabriel"]
[Black "Msellek, Ilyass"]
[Result "1/2-1/2"]
[ECO "B07"]
[WhiteElo "2079"]
[BlackElo "2342"]
[Annotator "RC"]
[PlyCount "111"]
[EventDate "2021.05.03"]
[EventType "tourn"]
[EventCountry "ESP"]
[SourceTitle "playchess.com"]
[Source "ChessBase"]
[SourceQuality "1"]
[TimeControl "5400+30"]

1. d4 {[%emt 0:00:00]} d6 {[%emt 0:00:05]} 2. e4 {[%emt 0:00:45]} Nf6 {[%emt 0:00:30]} 3. Nc3 {[%emt 0:00:09]} Nbd7 {[%emt 0:00:50]} 4. Nf3 {[%emt 0:01:26]} e5 {[%emt 0:00:18]} 5. Bc4 {[%emt 0:00:14]} Be7 {[%emt 0:00:07]} 6. O-O {[%emt 0:00:19]} O-O {[%emt 0:00:08]} 7. Re1 {[%emt 0:06:53]} c6 {[%emt 0:00:21]} 8. a4 {[%emt 0:00:06]} b6 {[%emt 0:00:26]} 9. d5 {[%emt 0:01:34]} cxd5 {[%emt 0:02:56]} 10. Bxd5 {[%emt 0:10:52]} Nxd5 {[%emt 0:02:26]} 11. Nxd5 {[%emt 0:00:09]} Bb7 {[%emt 0:02:11]} 12. a5 {[%emt 0:09:22]} bxa5 {[%emt 0:10:17]} 13. Bd2 {[%emt 0:08:26]} Bxd5 {[%emt 0:10:11]} 14. Bxa5 {[%emt 0:05:19]} Qb8 {[%emt 0:05:48]} 15. Qxd5 {[%emt 0:00:13]} Rc8 {[%emt 0:09:42]} 16. Bc3 {[%emt 0:03:00]} Nc5 {[%emt 0:01:23]} 17. Nd2 {[%emt 0:10:58]} Ne6 {[%emt 0:02:29]} 18. g3 {[%emt 0:00:10]} Rc5 {[%emt 0:16:46]} 19. Qd3 {[%emt 0:02:16]} Qc8 {[%emt 0:01:20]} 20. Nf1 {[%emt 0:01:40]} Ng5 {[%emt 0:03:10]} 21. Nd2 {[%emt 0:01:04]} Nh3+ {[%emt 0:04:27]} 22. Kg2 {[%emt 0:01:34]} h5 {[%emt 0:00:25]} 23. Qf3 {[%emt 0:06:07]} g6 {[%emt 0:00:40]} 24. Kh1 {[%emt 0:00:24]} Ng5 {[%emt 0:06:09]} 25. Qe2 {[%emt 0:01:23]} Ne6 {[%emt 0:00:20]} 26. Nf3 {[%emt 0:06:46]} a5 {[%emt 0:02:01]} 27. Ra4 {[%emt 0:01:37]} Bd8 {[%emt 0:04:06]} 28. Qd3 {[%emt 0:02:47]} Qc6 {[%emt 0:00:35]} 29. Rea1 {[%emt 0:00:08]} Bb6 {[%emt 0:01:37]} 30. Kg1 {[%emt 0:03:58]} Qc7 {[%emt 0:02:45]} 31. R4a3 {[%emt 0:03:21]} Rc8 {[%emt 0:01:27]} 32. Rd1 {[%emt 0:01:21]} Rc6 {[%emt 0:00:31]} 33. h4 {[%emt 0:00:35]} Rf8 {[%emt 0:03:03]} 34. Qd5 {[%emt 0:00:23]} Rc5 {[%emt 0:00:32]} 35. Qd2 {[%emt 0:00:39]} Qc6 {[%emt 0:00:53]} 36. Qe2 {[%emt 0:02:05]} f5 {[%emt 0:00:28]} 37. Nd2 {[%emt 0:01:24]} f4 {[%emt 0:00:55]} 38. Kh1 {[%emt 0:00:31]} Qc8 {[%emt 0:00:58]} 39. Kg2 {[%emt 0:03:38]} Rc7 {[%emt 0:00:38]} 40. Rf1 {[%emt 0:00:52]} Rcf7 {[%emt 0:01:14]} 41. Kh1 {[%emt 0:03:25]} Ng5 {[%emt 0:01:20]} 42. f3 {[%emt 0:00:26]} fxg3 {[%emt 0:01:46]} 43. Qg2 Nxf3 {[%emt 0:01:43]} 44. Qxg3 {[%emt 0:00:45]} Nxd2 {[%emt 0:00:28]} 45. Rxf7 {[%emt 0:00:46]} Rxf7 {[%emt 0:00:21]} 46. Bxd2 {[%emt 0:00:27]} Rf1+ {[%emt 0:01:35]} 47. Kh2 {[%emt 0:00:02]} Rf2+ {[%emt 0:00:05]} 48. Kh1 {[%emt 0:00:15]} Qe6 {[%emt 0:00:56]} 49. Rb3 {[%emt 0:01:16]} Rf1+ {[%emt 0:00:08]} 50. Kh2 {[%emt 0:00:01]} Rf2+ {[%emt 0:00:01]} 51. Kh1 {[%emt 0:00:09]} Rxd2 {[%emt 0:01:12]} 52. Rxb6 {[%emt 0:00:01]} Qg4 {[%emt 0:00:24]} 53. Qb3+ {[%emt 0:02:37]} Kg7 {[%emt 0:00:06]} 54. Rb7+ {[%emt 0:00:01]} Kh6 {[%emt 0:00:09]} 55. Rh7+ {[%emt 0:00:09]} Kxh7 {[%emt 0:00:04]} 56. Qf7+ {[%emt 0:00:02]} 1/2-1/2